bitfinex/quotes_BTCUSD_20250428
["timestamp","ask_amount","ask_price","bid_price","bid_amount"]
[1745868792415,0.01053862,94889.0,94886.0,0.21077925]
[1745868793050,0.01053851,94890.0,94887.0,0.21077676]
[1745868793598,0.01053862,94889.0,94884.0,0.21078369]
[1745868793787,0.22131294,94889.0,94885.0,0.21078032]
[1745868794137,0.22131385,94888.0,94885.0,0.21078032]
[1745868794542,0.22131167,94889.0,94886.0,0.21077896]
[1745868794962,0.01053862,94889.0,94886.0,0.21077784]
[1745868795314,0.002,94888.0,94887.0,0.21077702]
[1745868796709,0.01053885,94887.0,94883.0,0.21078483]
[1745868796910,0.22131557,94888.0,94885.0,0.21077927]
[1745868797293,0.01053885,94887.0,94885.0,0.21078147]
[1745868797524,0.22131221,94889.0,94885.0,0.21078147]
[1745868797731,0.01053996,94877.0,94874.0,0.21080496]
[1745868797945,0.01053996,94877.0,94870.0,0.00013603]
[1745868797946,0.21081035,94872.0,94870.0,0.00013603]
[1745868798151,0.25711035,94872.0,94870.0,0.00013603]
[1745868798953,0.0463,94872.0,94870.0,0.00013603]
[1745868799085,0.21081257,94871.0,94870.0,0.00013603]
[1745868799726,0.0463,94872.0,94870.0,0.00013603]
[1745868800123,0.0463,94872.0,94871.0,0.001]
[1745868800324,0.25711035,94872.0,94871.0,0.001]
[1745868800547,0.25711035,94872.0,94870.0,0.00013603]
[1745868800749,0.21081257,94871.0,94870.0,0.00113603]
[1745868801153,0.25711035,94872.0,94870.0,0.00113603]
[1745868801154,0.0463,94872.0,94871.0,0.21081257]
[1745868801320,0.0479,94876.0,94875.0,0.21080368]
[1745868803270,0.0479,94876.0,94874.0,0.21080543]
[1745868803464,0.0479,94876.0,94875.0,0.21080368]
[1745868804276,0.0479,94876.0,94871.0,0.21081048]
[1745868804484,0.0105404,94873.0,94870.0,0.00013603]
[1745868804706,0.0479,94876.0,94873.0,0.21080598]
[1745868804916,0.0479,94876.0,94874.0,0.21080411]
[1745868805390,0.01969621,94875.0,94874.0,0.21080411]
[1745868805549,0.01969621,94875.0,94873.0,0.21080696]
[1745868805748,0.00737816,94874.0,94873.0,0.21080696]
[1745868806152,0.02707437,94874.0,94873.0,0.21080696]
[1745868806985,0.02707437,94874.0,94873.0,0.001]
[1745868810885,0.13396451,94874.0,94873.0,0.001]
[1745868811295,0.17906451,94874.0,94873.0,0.001]
[1745868811920,0.22134853,94873.0,94870.0,0.00013603]
[1745868812127,0.21081257,94871.0,94870.0,0.00013603]
[1745868812669,0.23788694,94871.0,94870.0,0.00013603]
[1745868813796,0.24088694,94871.0,94870.0,0.00013603]
[1745868815557,0.03007437,94871.0,94870.0,0.00013603]
[1745868815763,0.24088694,94871.0,94870.0,0.00013603]
[1745868822444,0.22119073,94871.0,94870.0,0.00013603]
[1745868824756,0.01037816,94871.0,94870.0,0.00013603]
[1745868824941,0.22119073,94871.0,94870.0,0.00013603]
[1745868826159,0.21381257,94871.0,94870.0,0.00013603]
[1745868826386,0.22121489,94871.0,94870.0,0.00013603]
[1745868829294,0.01040232,94871.0,94870.0,0.00013603]
[1745868829518,0.01040232,94871.0,94870.0,0.21095082]
[1745868830737,0.01040232,94871.0,94870.0,0.22486701]
[1745868832271,0.01040232,94871.0,94870.0,0.21095082]
[1745868833291,0.01040232,94871.0,94870.0,0.22504364]
[1745868838489,0.01040232,94871.0,94870.0,0.21095082]
[1745868847322,0.26971489,94871.0,94870.0,0.00013603]
[1745868852638,0.37660503,94871.0,94870.0,0.00013603]
[1745868857229,0.01040232,94871.0,94870.0,0.21095082]
[1745868858202,0.42190503,94871.0,94870.0,0.00013603]
[1745868858433,0.45154052,94871.0,94870.0,0.00013603]
[1745868859054,0.44854052,94871.0,94870.0,0.00013603]
[1745868859298,0.45254052,94871.0,94870.0,0.00013603]
[1745868860268,0.21083257,94862.0,94861.0,0.00056906]
[1745868860469,0.31772271,94862.0,94861.0,0.00070509]
[1745868860668,0.32512503,94862.0,94861.0,0.00070509]
[1745868861507,0.32612503,94862.0,94861.0,0.00070509]
[1745868861910,0.32512503,94862.0,94861.0,0.00070509]
[1745868864291,0.01054229,94856.0,94854.0,0.21084916]
[1745868864507,0.01054251,94854.0,94852.0,0.21085447]
[1745868864719,0.22139325,94854.0,94851.0,0.21085673]
[1745868865126,0.01054251,94854.0,94851.0,0.21085673]
[1745868865352,0.01054218,94857.0,94855.0,0.21084799]
[1745868865575,0.21084813,94855.0,94854.0,0.001]
[1745868866279,0.21824952,94855.0,94854.0,0.001]
[1745868866665,0.01054251,94854.0,94851.0,0.21085587]
[1745868867040,0.00740139,94855.0,94854.0,0.21085035]
[1745868867605,0.22139286,94854.0,94851.0,0.21185587]
[1745868867814,0.22139286,94854.0,94851.0,0.21085587]
[1745868867815,0.21085083,94854.0,94851.0,0.21085587]
[1745868868493,0.00740139,94855.0,94854.0,0.21085035]
[1745868868680,0.00740139,94855.0,94854.0,0.21185035]
[1745868869964,0.00740139,94855.0,94854.0,0.21085035]
[1745868870429,7.678e-05,94862.0,94861.0,0.2108348]
[1745868870864,0.00747765,94862.0,94861.0,0.2108348]
[1745868871716,0.00847765,94862.0,94861.0,0.2108348]
[1745868875111,0.00847765,94862.0,94861.0,0.2565348]
[1745868875319,0.00847765,94862.0,94861.0,0.27107565]
[1745868875522,0.00847765,94862.0,94861.0,0.71796579]
[1745868875740,0.00107678,94862.0,94861.0,0.82636579]
[1745868875968,7.678e-05,94862.0,94861.0,0.87366579]
[1745868877726,7.678e-05,94862.0,94861.0,0.87666579]
[1745868880647,7.678e-05,94862.0,94861.0,1.28776579]
[1745868886055,1e-08,94862.0,94861.0,1.28776579]
[1745868886880,1e-08,94862.0,94861.0,1.28476579]
[1745868888319,1e-08,94862.0,94861.0,1.29076579]
[1745868888593,1e-08,94862.0,94861.0,1.28476579]
[1745868888979,1e-08,94862.0,94861.0,1.29176579]
[1745868898022,1e-08,94862.0,94861.0,1.31116078]
[1745868900597,1e-08,94862.0,94861.0,1.21816078]
[1745868900809,1e-08,94862.0,94861.0,1.09521993]
[1745868901188,1e-08,94862.0,94861.0,1.10976078]
[1745868901675,1e-08,94862.0,94861.0,1.10276078]
[1745868901876,1e-08,94862.0,94861.0,1.08336579]
[1745868902217,1e-08,94862.0,94861.0,0.9639348]
[1745868902642,1e-08,94862.0,94861.0,0.6219348]
[1745868905621,0.09770001,94862.0,94861.0,0.002]
[1745868905844,0.09770001,94862.0,94860.0,0.21083554]
[1745868906041,0.09870001,94862.0,94860.0,0.21083554]
[1745868906790,0.09870001,94862.0,94860.0,0.21083672]
[1745868907623,0.09770001,94862.0,94860.0,0.21083672]
[1745868907835,0.04900001,94862.0,94860.0,0.21083672]
[1745868908044,0.00100001,94862.0,94861.0,0.01664893]
[1745868908212,1e-08,94862.0,94861.0,0.12262085]
[1745868908569,0.00100001,94862.0,94861.0,0.12262085]
[1745868908981,1e-08,94862.0,94861.0,0.12262085]
[1745868909174,1e-08,94862.0,94861.0,0.12562085]
[1745868909375,1e-08,94862.0,94861.0,0.98571899]
[1745868909580,1e-08,94862.0,94861.0,0.98361099]
[1745868912712,1e-08,94862.0,94861.0,1.03041099]
[1745868915395,1e-08,94862.0,94861.0,1.24124579]
[1745868915825,1e-08,94862.0,94861.0,1.2606771]
[1745868916891,1e-08,94862.0,94861.0,1.24124579]
[1745868918647,1e-08,94862.0,94861.0,1.28794579]
[1745868919633,1e-08,94862.0,94861.0,1.30737132]
[1745868919826,1e-08,94862.0,94861.0,1.30437132]
[1745868920031,1e-08,94862.0,94861.0,1.31037132]
[1745868921766,0.13184291,94895.0,94892.0,0.01053829]
[1745868922065,0.13188838,94895.0,94894.0,0.21076148]
[1745868923427,0.13388838,94895.0,94894.0,0.21076148]
[1745868924076,0.13188838,94895.0,94894.0,0.21076148]
[1745868924276,0.13388838,94895.0,94886.0,0.10776]
[1745868924449,0.13388838,94895.0,94894.0,0.21076148]
[1745868925042,0.04934547,94895.0,94894.0,0.21076148]
[1745868925661,0.04734547,94895.0,94894.0,0.21076148]
[1745868926062,0.04934547,94895.0,94894.0,0.21076148]
[1745868926582,0.04734547,94895.0,94894.0,0.21076148]
[1745868929020,0.04934547,94895.0,94894.0,0.21076148]
[1745868931728,0.06247625,94895.0,94894.0,0.21076148]
[1745868939384,0.06247625,94895.0,94893.0,0.21076364]
[1745868939584,0.07301421,94895.0,94891.0,0.2107666]
[1745868939827,0.01053807,94894.0,94883.0,0.01053929]
[1745868940028,0.06247625,94895.0,94894.0,0.21076148]
[1745868940232,0.04934547,94895.0,94894.0,0.21076148]
[1745868940380,0.05475099,94895.0,94894.0,0.21076148]
[1745868940559,0.05675099,94895.0,94894.0,0.21076148]
[1745868940997,0.05475099,94895.0,94894.0,0.21076148]
[1745868941393,0.05675099,94895.0,94894.0,0.21076148]
[1745868942467,0.05475099,94895.0,94894.0,0.21076148]
[1745868942702,0.05675099,94895.0,94894.0,0.21076148]
[1745868943150,0.05475099,94895.0,94894.0,0.21076148]
[1745868943789,0.05675099,94895.0,94894.0,0.21076148]
[1745868947539,0.00945099,94895.0,94894.0,0.21076148]
[1745868948755,0.00204547,94895.0,94894.0,0.21076148]
[1745868983375,0.00945729,94895.0,94894.0,0.21076148]
[1745868983899,0.00945729,94895.0,94894.0,0.23025285]
[1745868986137,0.05695729,94895.0,94894.0,0.01949137]
[1745868986339,0.06974739,94895.0,94894.0,0.01949137]
[1745868987036,0.06974739,94895.0,94894.0,0.23025285]
[1745868987395,0.06974739,94895.0,94894.0,0.01949137]
[1745868988048,0.06974739,94895.0,94893.0,0.21076201]
[1745868988696,0.06974739,94895.0,94888.0,0.01915165]
[1745868988697,0.25877209,94890.0,94888.0,0.00861291]
[1745868989061,0.01278973,94889.0,94888.0,0.00861291]
[1745868989665,0.02020155,94889.0,94888.0,0.00861291]
[1745868990850,0.02120155,94889.0,94888.0,0.00861291]
[1745868992229,0.21684679,94889.0,94888.0,0.00861291]
[1745868992473,0.17569169,94889.0,94888.0,0.00861291]
[1745868992709,0.01054018,94875.0,94872.0,0.21081035]
[1745868992986,0.023286,94874.0,94867.0,0.21081935]
[1745868993215,0.23409221,94874.0,94867.0,0.22136042]
[1745868993450,0.01274571,94874.0,94872.0,0.21080996]
[1745868993949,0.0476,94876.0,94875.0,0.21080368]
[1745868994343,0.0476,94876.0,94873.0,0.21080637]
[1745868994583,0.01274296,94875.0,94873.0,0.21080637]
[1745868994787,0.01274296,94875.0,94874.0,0.21080531]
[1745868996642,0.01374296,94875.0,94874.0,0.21080531]
[1745868998307,0.01374296,94875.0,94873.0,0.21080637]
[1745868998685,0.01374296,94875.0,94874.0,0.21080591]
[1745868999092,0.01274296,94875.0,94874.0,0.21080591]
[1745868999335,0.02428314,94875.0,94872.0,0.21080879]
[1745868999532,0.01374296,94875.0,94874.0,0.21080591]
[1745868999911,0.01274296,94875.0,94874.0,0.21080591]
[1745869000113,0.01374296,94875.0,94874.0,0.21080591]
[1745869003021,0.001,94875.0,94874.0,0.27284676]
[1745869003407,0.001,94875.0,94874.0,0.29228712]
[1745869003604,0.001,94875.0,94874.0,0.39917726]
[1745869003813,0.001,94875.0,94874.0,0.81027725]
[1745869004232,4.547e-05,94895.0,94894.0,0.21076148]
[1745869004391,4.547e-05,94895.0,94894.0,0.23020184]
[1745869007114,0.00404547,94895.0,94894.0,0.23020184]
[1745869013463,0.00404547,94895.0,94894.0,0.21076148]
[1745869022929,4.547e-05,94895.0,94894.0,0.21076148]
[1745869023300,0.00104547,94895.0,94894.0,0.23019037]
[1745869025168,0.00104547,94895.0,94894.0,0.21076148]
[1745869026315,0.00104547,94895.0,94894.0,0.23019511]
[1745869028270,0.00104547,94895.0,94894.0,0.21076148]
[1745869028448,0.00104547,94895.0,94894.0,0.23020724]
[1745869030080,0.00104547,94895.0,94894.0,0.21076148]
[1745869030218,0.00104547,94895.0,94894.0,0.23021418]
[1745869031224,0.00104547,94895.0,94894.0,0.29375503]
[1745869031455,0.00104547,94895.0,94894.0,0.41037851]
[1745869032195,4.547e-05,94895.0,94894.0,0.41037851]
[1745869032571,4.547e-05,94895.0,94894.0,0.41237851]
[1745869034980,4.547e-05,94895.0,94894.0,0.40264517]
[1745869036115,4.547e-05,94895.0,94894.0,0.81374516]
[1745869037937,4.547e-05,94895.0,94894.0,0.64331417]
[1745869040490,4.547e-05,94895.0,94894.0,0.62386147]
[1745869042052,4.547e-05,94895.0,94894.0,0.21276148]
[1745869043677,4.547e-05,94895.0,94894.0,0.21076148]
[1745869043903,4.547e-05,94895.0,94894.0,0.21176148]
[1745869044437,4.547e-05,94895.0,94894.0,0.21076148]
[1745869044847,4.547e-05,94895.0,94894.0,0.21176148]
[1745869045224,0.01180375,94895.0,94894.0,0.21176148]
[1745869045408,4.547e-05,94895.0,94894.0,0.21176148]
[1745869045611,0.01180375,94895.0,94894.0,0.21176148]
[1745869046282,4.547e-05,94895.0,94894.0,0.21076148]
[1745869046457,0.00104547,94895.0,94894.0,0.21076148]
[1745869047059,4.547e-05,94895.0,94894.0,0.21076148]
[1745869047221,0.00204547,94895.0,94894.0,0.21076148]
[1745869047758,4.547e-05,94895.0,94894.0,0.21076148]
[1745869047956,0.00104547,94895.0,94894.0,0.21076148]
[1745869048516,0.00104547,94895.0,94894.0,0.21691134]
[1745869049477,4.547e-05,94895.0,94894.0,0.21691134]
[1745869049728,0.00204547,94895.0,94894.0,0.21691134]
[1745869050134,4.547e-05,94895.0,94894.0,0.21691134]
[1745869050490,0.00104547,94895.0,94894.0,0.21691134]
[1745869050894,4.547e-05,94895.0,94894.0,0.21691134]
[1745869051250,0.00204547,94895.0,94894.0,0.21691134]
[1745869052608,4.547e-05,94895.0,94894.0,0.21691134]
[1745869052761,0.00104547,94895.0,94894.0,0.21691134]
[1745869053343,4.547e-05,94895.0,94894.0,0.21691134]
[1745869053525,0.00104547,94895.0,94894.0,0.21691134]
[1745869053993,4.547e-05,94895.0,94894.0,0.21691134]
[1745869054331,0.00104547,94895.0,94894.0,0.21691134]
[1745869056106,4.547e-05,94895.0,94894.0,0.21691134]
[1745869056316,0.00104547,94895.0,94894.0,0.21691134]
[1745869056867,4.547e-05,94895.0,94894.0,0.21691134]
[1745869057225,0.00104547,94895.0,94894.0,0.21691134]
[1745869059677,0.00104547,94895.0,94894.0,0.79914232]
[1745869062565,0.05042421,94900.0,94899.0,0.22529122]
[1745869062776,0.05042421,94900.0,94899.0,0.67218136]
[1745869063384,0.05042421,94900.0,94899.0,0.69163261]
[1745869063748,0.05042421,94900.0,94899.0,0.73823261]
[1745869064851,0.05042421,94900.0,94899.0,0.73923261]
[1745869065699,0.05042421,94900.0,94899.0,0.55175037]
[1745869065868,0.05042421,94900.0,94899.0,0.21175037]
[1745869067494,0.05042421,94900.0,94899.0,0.21075037]
[1745869068693,0.05042421,94900.0,94899.0,0.21175037]
[1745869069575,0.05042421,94900.0,94899.0,0.21075037]
[1745869070912,0.05042421,94900.0,94899.0,0.21175037]
[1745869071268,0.05042421,94900.0,94899.0,0.21075037]
[1745869071468,0.05042421,94900.0,94899.0,0.21175037]
[1745869073760,0.05042421,94900.0,94899.0,0.33318136]
[1745869074121,0.05042421,94900.0,94899.0,0.67318136]
[1745869074321,0.05042421,94900.0,94899.0,1.08428135]
[1745869074697,0.05042421,94900.0,94899.0,1.13148135]
[1745869075120,0.1,94903.0,94902.0,0.61248456]
[1745869075333,0.1,94903.0,94902.0,1.13047469]
[1745869075891,0.0004241,94913.0,94912.0,0.22526236]
[1745869075892,1e-08,94913.0,94912.0,0.22526236]
[1745869076103,1e-08,94915.0,94914.0,0.22525792]
[1745869076341,1e-08,94915.0,94914.0,0.79044805]
[1745869076533,1e-08,94915.0,94914.0,0.7759072]
[1745869076968,1e-08,94915.0,94914.0,0.79824752]
[1745869078721,0.00100001,94915.0,94914.0,0.79824752]
[1745869079579,0.00752708,94922.0,94921.0,0.56524238]
[1745869079788,0.00752708,94922.0,94921.0,0.77861252]
[1745869080926,0.00952708,94922.0,94921.0,0.77861252]
[1745869081829,0.00952708,94922.0,94921.0,0.67213252]
[1745869082011,0.00952708,94922.0,94921.0,0.77861252]
[1745869082353,0.00952708,94922.0,94921.0,0.79083086]
[1745869083141,0.00952708,94922.0,94921.0,1.20193085]
[1745869083312,0.0103698,94929.0,94928.0,0.22522684]
[1745869083513,0.0103698,94929.0,94928.0,0.33211698]
[1745869084558,0.0133698,94929.0,94928.0,0.33225312]
[1745869084934,0.0133698,94929.0,94928.0,0.21082213]
[1745869085304,0.23414013,94929.0,94928.0,0.00013614]
[1745869085699,0.02345636,94929.0,94928.0,0.00013614]
[1745869086059,0.02345636,94929.0,94928.0,0.21082213]
[1745869087235,0.02345636,94929.0,94928.0,0.00013614]
[1745869087636,0.0133698,94929.0,94928.0,0.00013614]
[1745869087842,0.0218099,94929.0,94928.0,0.21082213]
[1745869088036,0.0133698,94929.0,94928.0,0.21082213]
[1745869090418,0.0133698,94929.0,94928.0,0.00013614]
[1745869090545,0.23120447,94929.0,94928.0,0.00013614]
[1745869091167,0.33809461,94929.0,94928.0,0.00013614]
[1745869091362,0.34547599,94929.0,94928.0,0.00013614]
[1745869091931,0.36515856,94929.0,94928.0,0.00013614]
[1745869092563,0.36215856,94929.0,94928.0,0.00013614]
[1745869092898,0.36515856,94929.0,94928.0,0.00013614]
[1745869093319,0.36215856,94929.0,94928.0,0.00013614]
[1745869093641,0.36515856,94929.0,94928.0,0.00013614]
[1745869097017,0.4720487,94929.0,94928.0,0.00013614]
[1745869097220,0.36515856,94929.0,94928.0,0.00013614]
[1745869106408,0.75065856,94929.0,94928.0,0.00013614]
[1745869106612,0.75065856,94929.0,94902.0,0.21074303]
[1745869106613,0.01053674,94906.0,94902.0,0.21074303]
[1745869106860,0.00693933,94905.0,94903.0,0.21074099]
[1745869107039,0.0266219,94905.0,94904.0,0.21073927]
[1745869107233,0.00693933,94905.0,94904.0,0.21073927]
[1745869107432,0.0455,94907.0,94906.0,0.21073483]
[1745869107639,0.05243109,94907.0,94906.0,0.21073483]
[1745869107840,0.07213552,94907.0,94906.0,0.21073483]
[1745869109162,0.02663552,94907.0,94906.0,0.21073483]
[1745869109729,0.22127246,94906.0,94896.0,0.01053785]
[1745869109939,0.02663552,94907.0,94898.0,0.01053762]
[1745869110140,0.02662726,94905.0,94904.0,0.21073927]
[1745869110319,0.01970443,94905.0,94904.0,0.21073927]
[1745869110719,0.02660803,94905.0,94904.0,0.21073927]
[1745869111738,0.02660803,94905.0,94904.0,0.21173927]
[1745869112490,0.01970443,94905.0,94904.0,0.21173927]
[1745869112950,0.0265504,94905.0,94904.0,0.21173927]
[1745869113335,0.01970443,94905.0,94904.0,0.21173927]
[1745869113738,0.0265504,94905.0,94904.0,0.21173927]
[1745869114721,0.01970443,94905.0,94904.0,0.21173927]
[1745869114990,0.0265504,94905.0,94904.0,0.21173927]
[1745869115680,0.01970443,94905.0,94904.0,0.21173927]
[1745869116283,0.0265504,94905.0,94904.0,0.001]
[1745869116492,0.0265504,94905.0,94904.0,0.21173927]
[1745869116694,0.01970443,94905.0,94904.0,0.21173927]
[1745869117044,0.0265504,94905.0,94904.0,0.21173927]
[1745869118560,0.0265504,94905.0,94904.0,0.001]
[1745869118759,0.0265504,94905.0,94904.0,0.21173927]
[1745869119032,0.0265504,94905.0,94904.0,0.001]
[1745869119669,0.0265504,94905.0,94904.0,0.21173927]
[1745869120799,0.03393178,94905.0,94904.0,0.21173927]
[1745869125213,0.02708581,94905.0,94904.0,0.21173927]
[1745869125410,0.03393178,94905.0,94904.0,0.21173927]
[1745869130818,0.02708581,94905.0,94904.0,0.001]
[1745869131020,0.03393178,94905.0,94904.0,0.001]
[1745869131395,0.02708581,94905.0,94904.0,0.21173927]
[1745869131622,0.03393178,94905.0,94904.0,0.21173927]
[1745869132028,0.02770277,94905.0,94904.0,0.21173927]
[1745869132226,0.0208568,94905.0,94904.0,0.21173927]
[1745869132568,0.02770277,94905.0,94904.0,0.21173927]
[1745869135786,0.0208568,94905.0,94904.0,0.21173927]
[1745869136194,0.0276664,94905.0,94904.0,0.21173927]
[1745869136555,0.0208568,94905.0,94904.0,0.21173927]
[1745869136758,0.0276664,94905.0,94904.0,0.21173927]
[1745869136959,0.0208568,94905.0,94904.0,0.21173927]
[1745869138525,0.0276664,94905.0,94904.0,0.21173927]
[1745869139283,0.0208568,94905.0,94904.0,0.21173927]
[1745869140767,0.0276664,94905.0,94904.0,0.21173927]
[1745869143103,0.0208568,94905.0,94904.0,0.21173927]
[1745869143320,0.0208568,94905.0,94904.0,0.21384649]
[1745869143881,0.01347542,94905.0,94904.0,0.21384649]
[1745869144735,0.00738138,94924.0,94923.0,0.21069709]
[1745869144904,0.01300197,94924.0,94923.0,0.21069709]
[1745869145287,0.03273944,94924.0,94923.0,0.21069709]
[1745869145737,0.03273944,94924.0,94923.0,0.21083326]
[1745869145941,0.03273944,94924.0,94923.0,0.00013617]
[1745869146190,0.03673944,94924.0,94923.0,0.00013617]
[1745869146591,0.03673944,94924.0,94923.0,0.21083326]
[1745869149147,0.03111885,94924.0,94923.0,0.21083326]
[1745869149515,0.02711885,94924.0,94923.0,0.00013617]
[1745869149718,0.03278949,94924.0,94923.0,0.00013617]
[1745869149936,0.24348436,94924.0,94923.0,0.00013617]
[1745869150151,0.03278949,94924.0,94923.0,0.00013617]
[1745869150339,0.03378949,94924.0,94923.0,0.00013617]
[1745869150727,0.03378949,94924.0,94923.0,0.21083326]
[1745869151131,0.03378949,94924.0,94923.0,0.00013617]
[1745869152021,0.03378949,94924.0,94923.0,0.21083326]
[1745869152970,0.03378949,94924.0,94923.0,0.00013617]
[1745869153195,0.24448436,94924.0,94923.0,0.00013617]
[1745869154911,0.22123805,94921.0,94918.0,0.2008422]
[1745869155102,0.0105354,94918.0,94915.0,0.21071062]
[1745869155326,0.00574934,94917.0,94915.0,0.21084692]
[1745869155528,0.21071263,94916.0,94915.0,0.0001363]
[1745869155749,0.23042294,94916.0,94915.0,0.0001363]
[1745869156045,0.28507228,94916.0,94915.0,0.0001363]
[1745869156245,0.29245366,94916.0,94915.0,0.0001363]
[1745869158246,0.49390847,94916.0,94915.0,0.0001363]
[1745869158456,0.21074371,94902.0,94890.0,0.0008482]
[1745869158664,0.36323385,94902.0,94890.0,0.0008482]
[1745869158811,0.36885118,94902.0,94890.0,0.0008482]
[1745869159015,0.37623256,94902.0,94890.0,0.0008482]
[1745869159247,0.21076814,94891.0,94890.0,0.0008482]
[1745869159625,0.236126,94891.0,94890.0,0.0008482]
[1745869160034,0.02535786,94891.0,94890.0,0.21161856]
[1745869160227,0.00564755,94891.0,94890.0,0.31011856]
[1745869160423,0.01053685,94905.0,94902.0,0.01053718]
[1745869160628,0.01053707,94903.0,94898.0,0.21075185]
[1745869160833,0.22128279,94902.0,94898.0,0.22128947]
[1745869161031,0.01970878,94901.0,94899.0,0.22128747]
[1745869161234,0.22127476,94905.0,94899.0,0.22128747]
[1745869161235,8.147e-05,94916.0,94915.0,0.21071485]
[1745869161406,0.0103698,94929.0,94928.0,0.61092684]
[1745869161806,0.0103698,94929.0,94928.0,0.62278842]
[1745869162213,0.0103698,94929.0,94928.0,0.72967856]
[1745869162979,0.0103698,94929.0,94928.0,0.73769509]
[1745869163172,0.0103698,94929.0,94928.0,0.74169509]
[1745869170956,0.0103698,94929.0,94928.0,1.15279508]
[1745869175239,0.0103698,94929.0,94928.0,1.10709508]
[1745869194294,0.0103698,94929.0,94928.0,1.21281508]
[1745869195803,0.0103698,94929.0,94928.0,1.10709508]
[1745869196146,0.0103698,94929.0,94928.0,1.21281508]
[1745869197735,0.0103698,94929.0,94928.0,1.10709508]
[1745869203572,0.0103698,94929.0,94928.0,1.11746408]
[1745869209514,0.0103698,94929.0,94928.0,1.11746408]
[1745869212676,0.0572698,94929.0,94928.0,0.77746408]
[1745869213209,0.06467795,94929.0,94928.0,0.77746408]
[1745869213425,0.06467795,94929.0,94928.0,0.75978442]
[1745869213781,0.06467795,94929.0,94928.0,0.70031393]
[1745869213924,0.0572698,94929.0,94928.0,0.70031393]
[1745869214363,0.0572698,94929.0,94928.0,0.69631393]
[1745869214589,0.0572698,94929.0,94928.0,0.69831393]
[1745869214772,0.0103698,94929.0,94928.0,0.69831393]
[1745869215194,0.0103698,94929.0,94928.0,1.03831393]
[1745869215948,0.0103698,94929.0,94928.0,1.03631393]
[1745869216171,0.0103698,94929.0,94928.0,1.04031393]
[1745869224749,0.0053698,94929.0,94928.0,1.04031393]
[1745869237361,0.0053698,94929.0,94928.0,1.14583393]
[1745869243474,0.0053698,94929.0,94928.0,1.14583393]
[1745869252582,0.0053698,94929.0,94928.0,1.04031393]
[1745869306412,0.0053698,94929.0,94928.0,1.14543393]
[1745869315727,0.0053698,94929.0,94928.0,1.04031393]
[1745869315903,0.0053698,94929.0,94928.0,1.14523393]
[1745869321862,0.0053698,94929.0,94928.0,1.04031393]
[1745869325395,0.0053698,94929.0,94928.0,1.02994493]
[1745869331954,0.0053698,94929.0,94928.0,0.67808335]
[1745869331955,0.0503698,94929.0,94928.0,0.67808335]
[1745869332182,0.05777843,94929.0,94928.0,0.67808335]
[1745869332400,0.07753495,94929.0,94928.0,0.67808335]
[1745869332879,0.07753495,94929.0,94928.0,0.67408335]
[1745869334162,0.07753495,94929.0,94928.0,0.67508335]
[1745869334640,0.07753495,94929.0,94928.0,0.67408335]
[1745869335071,0.03253495,94929.0,94928.0,0.67508335]
[1745869335693,0.0053698,94929.0,94928.0,0.67508335]
[1745869341405,0.02510459,94929.0,94928.0,0.67508335]
[1745869343163,0.0053698,94929.0,94928.0,0.67508335]
[1745869343612,0.02510491,94929.0,94928.0,0.67508335]
[1745869356657,0.0053698,94929.0,94928.0,1.01508335]
[1745869357365,0.0053698,94929.0,94928.0,1.01408335]
[1745869357738,0.0053698,94929.0,94928.0,1.01608335]
[1745869358353,0.0053698,94929.0,94928.0,1.12076335]
[1745869358872,0.0053698,94929.0,94928.0,1.11876335]
[1745869359400,0.0053698,94929.0,94928.0,1.12176335]
[1745869362465,1e-08,94929.0,94928.0,1.12176335]
[1745869362671,0.0004241,94936.0,94928.0,1.12176335]
[1745869362672,0.01563736,94948.0,94947.0,0.01454085]
[1745869362820,0.0477,94958.0,94947.0,0.75370699]
[1745869363031,0.0477,94958.0,94952.0,0.22517359]
[1745869363265,0.0477,94958.0,94952.0,0.34296079]
[1745869363824,0.0044242,94953.0,94952.0,0.35067196]
[1745869364083,0.00446969,94953.0,94952.0,0.35067196]
[1745869364222,0.00246969,94953.0,94952.0,0.3397749]
[1745869364645,0.00446969,94953.0,94952.0,0.3397749]
[1745869366145,0.00446969,94953.0,94952.0,0.3510544]
[1745869367472,0.00246969,94953.0,94952.0,0.76215438]
[1745869367625,0.00446969,94953.0,94952.0,0.76215438]
[1745869368295,0.0453,94945.0,94941.0,0.21065662]
[1745869368441,0.0905,94945.0,94942.0,0.22118766]
[1745869368642,0.00561348,94944.0,94942.0,0.22118586]
[1745869368843,0.00561348,94944.0,94942.0,0.22118714]
[1745869369068,0.00561348,94944.0,94941.0,0.22118753]
[1745869369285,0.0905,94945.0,94943.0,0.21065159]
[1745869369630,0.00560811,94944.0,94943.0,0.21065159]
[1745869377838,0.0905,94945.0,94944.0,0.21065048]
[1745869378286,0.09609005,94945.0,94944.0,0.21065048]
[1745869379239,0.0494,94951.0,94948.0,0.22117221]
[1745869379484,0.0494,94951.0,94950.0,0.21063717]
[1745869379847,0.06912097,94951.0,94950.0,0.21063717]
[1745869380550,0.07851669,94951.0,94950.0,0.21063717]
[1745869381901,0.07651669,94951.0,94950.0,0.21063717]
[1745869382309,0.07851669,94951.0,94950.0,0.21063717]
[1745869382517,0.07851669,94951.0,94949.0,0.21063912]
[1745869382703,0.00739572,94950.0,94949.0,0.21063912]
[1745869382904,0.00739572,94950.0,94948.0,0.2106411]
[1745869383095,0.24828697,94950.0,94947.0,0.21064361]
[1745869383304,0.22117239,94949.0,94946.0,0.21064166]
[1745869383503,0.24089336,94949.0,94946.0,0.21064166]
[1745869383889,0.01053219,94947.0,94944.0,0.21064847]
[1745869384088,0.01053219,94947.0,94941.0,0.01053285]
[1745869384294,0.24089862,94948.0,94946.0,0.21064605]
[1745869384535,0.01053185,94950.0,94947.0,0.21064383]
[1745869384866,0.01053185,94950.0,94948.0,0.21064131]
[1745869385170,0.01973164,94949.0,94948.0,0.21064131]
[1745869385382,0.027131,94949.0,94947.0,0.21064334]
[1745869385602,0.01973164,94948.0,94947.0,0.21064334]
[1745869386164,0.027131,94948.0,94947.0,0.21064334]
[1745869389186,0.028131,94948.0,94947.0,0.21064334]
[1745869390799,0.02073164,94948.0,94947.0,0.21064334]
[1745869391032,0.02513835,94948.0,94947.0,0.21064334]
[1745869391210,0.02073164,94948.0,94947.0,0.21064334]
[1745869391611,0.02513835,94948.0,94947.0,0.21064334]
[1745869392601,0.03567043,94948.0,94946.0,0.21064574]
[1745869392801,0.02513835,94948.0,94947.0,0.21064383]
[1745869392997,0.03567043,94948.0,94945.0,0.21064702]
[1745869393199,0.02513835,94948.0,94947.0,0.21064383]
[1745869393408,0.02413835,94948.0,94946.0,0.21064573]
[1745869393558,0.01973164,94947.0,94946.0,0.21064573]
[1745869393954,0.02413937,94947.0,94946.0,0.21064573]
[1745869395334,0.02513937,94947.0,94946.0,0.21064573]
[1745869397296,0.03254183,94947.0,94946.0,0.21064573]
[1745869399683,0.03254183,94947.0,94942.0,0.22118654]
[1745869399879,0.01973164,94946.0,94942.0,0.01053274]
[1745869400082,0.01973164,94946.0,94945.0,0.21064827]
[1745869401433,0.02713547,94946.0,94945.0,0.21064827]
[1745869402071,0.02813547,94946.0,94945.0,0.21064827]